bitfinex/quotes_SOLUSD_20260105
["timestamp","ask_amount","ask_price","bid_price","bid_amount"]
[1767637021172,20.75186196,136.02,135.97,0.66510164]
[1767637021392,0.10326703,136.01,135.96,7.35478726]
[1767637021595,0.10326703,136.01,135.96,8.0198889]
[1767637021797,0.10736592,135.97,135.92,8.2221492]
[1767637022097,5.99031072,135.97,135.92,0.86510164]
[1767637022478,6.18915859,135.96,135.92,0.2]
[1767637022680,5.9922992,135.95,135.92,0.2]
[1767637023190,8.35013837,136.05,135.92,0.2]
[1767637023191,22.62652123,136.14,135.93,8.35013837]
[1767637023393,5.8829448,135.98,135.93,0.66510164]
[1767637023601,18.86523516,136.06,135.93,0.66510164]
[1767637023602,19.2829448,135.99,135.93,0.66510164]
[1767637023784,5.9819448,135.98,135.93,0.66510164]
[1767637023979,5.98409976,135.96,135.92,0.2]
[1767637024181,6.19530744,135.95,135.92,0.2]
[1767637024379,6.09530744,135.94,135.9,0.2]
[1767637024781,13.35667614,135.93,135.9,0.2]
[1767637024986,13.35667614,135.93,135.9,0.1]
[1767637024987,5.8829448,135.92,135.9,0.1]
[1767637025283,7.35705856,135.93,135.9,0.1]
[1767637025284,13.24000336,135.93,135.9,0.1]
[1767637025491,5.8829448,135.94,135.9,0.1]
[1767637025807,26.63880991,135.95,135.9,0.1]
[1767637026404,13.4,135.95,135.9,8.12333997]
[1767637026982,26.63860688,135.95,135.9,8.12333997]
[1767637027307,13.4,135.95,135.91,0.66510164]
[1767637027601,26.63760179,135.97,135.91,0.66510164]
[1767637027776,13.23760179,135.97,135.91,0.66510164]
[1767637027977,13.4,135.97,135.91,0.66510164]
[1767637028709,5.8829448,135.97,135.91,0.66510164]
[1767637029006,26.63712547,135.98,135.92,0.66510164]
[1767637029786,13.4,135.98,135.92,0.66510164]
[1767637031081,18.3804787,136.02,135.94,0.66510164]
[1767637031308,13.4,136.01,135.94,0.66510164]
[1767637031607,5.8829448,136.0,135.94,0.66510164]
[1767637031781,39.13340587,136.01,135.94,0.66510164]
[1767637031983,5.8829448,135.97,135.92,0.66510164]
[1767637032282,5.8829448,135.95,135.92,0.66510164]
[1767637032684,5.8829448,135.96,135.9,0.76510164]
[1767637032906,5.8829448,135.95,135.9,0.76510164]
[1767637033407,13.23895685,135.95,135.9,0.76510164]
[1767637033999,7.35601205,135.95,135.9,0.1]
[1767637034208,5.8829448,135.93,135.9,0.1]
[1767637035203,7.35726898,135.92,135.9,0.1]
[1767637036208,13.24021378,135.92,135.9,0.1]
[1767637036395,13.24021378,135.92,135.89,0.2]
[1767637036593,5.8829448,135.9,135.89,1e-08]
[1767637036998,5.8829448,135.91,135.89,1e-08]
[1767637037401,13.24095122,135.91,135.89,1e-08]
[1767637037595,5.8829448,135.9,135.89,1e-08]
[1767637037998,5.82294481,135.9,135.89,1e-08]
[1767637038200,7.35800642,135.91,135.89,1e-08]
[1767637038404,7.35752187,135.92,135.89,0.66510165]
[1767637038701,13.24046667,135.92,135.89,0.66510165]
[1767637038906,5.8829448,135.91,135.89,1e-08]
[1767637039402,7.35752187,135.92,135.89,0.66510165]
[1767637040009,13.24046667,135.92,135.89,0.66510165]
[1767637040396,7.35752187,135.92,135.89,0.66510165]
[1767637041301,26.63988453,135.93,135.89,0.66510165]
[1767637041497,20.75695826,135.93,135.89,0.66510165]
[1767637044615,13.4,135.93,135.89,0.66510165]
[1767637044814,20.7567296,135.93,135.89,0.66510165]
[1767637045414,26.6396744,135.93,135.89,0.66510165]
[1767637045992,20.7567296,135.93,135.89,0.66510165]
[1767637046191,5.8829448,135.92,135.89,1e-08]
[1767637046408,5.8829448,135.92,135.89,0.66510165]
[1767637046802,5.8829448,135.91,135.89,1e-08]
[1767637046995,5.8829448,135.9,135.89,1e-08]
[1767637047199,19.2829448,135.9,135.89,1e-08]
[1767637048009,26.64129652,135.9,135.89,1e-08]
[1767637048409,26.64129652,135.9,135.87,0.2]
[1767637048614,2.40169203,135.89,135.87,0.2]
[1767637050300,20.75835172,135.9,135.87,0.2]
[1767637050501,3.75265371,135.89,135.87,0.2]
[1767637050814,20.75835172,135.9,135.87,0.2]
[1767637050997,24.51100543,135.9,135.87,0.2]
[1767637051318,20.75835172,135.9,135.87,0.2]
[1767637051712,24.51100543,135.9,135.87,0.2]
[1767637052707,3.75265371,135.88,135.86,0.2]
[1767637054509,3.75265371,135.87,135.84,0.88939119]
[1767637054709,11.11295889,135.87,135.84,0.88939119]
[1767637055219,7.36030518,135.87,135.84,0.88939119]
[1767637055515,11.11295889,135.87,135.84,0.88939119]
[1767637056402,3.75265371,135.86,135.84,0.2]
[1767637056603,9.58658789,135.86,135.84,0.2]
[1767637057103,30.36689307,135.87,135.84,0.2]
[1767637057616,9.58658789,135.86,135.84,0.2]
[1767637057810,9.58658789,135.85,135.84,0.2]
[1767637057999,9.58658789,135.86,135.84,0.2]
[1767637058813,39.1802463,135.87,135.84,0.2]
[1767637059115,39.1802463,135.87,135.83,0.2]
[1767637059116,16.94794156,135.85,135.83,0.2]
[1767637059317,9.58658789,135.84,135.83,1e-08]
[1767637059616,20.78135367,135.85,135.83,1e-08]
[1767637059817,13.42,135.85,135.83,0.6893912]
[1767637060021,7.36017613,135.87,135.83,0.6893912]
[1767637060227,13.42,135.87,135.84,0.68939119]
[1767637062024,39.17626732,135.89,135.84,0.68939119]
[1767637062213,20.77903427,135.89,135.84,0.68939119]
[1767637063126,20.77903427,135.89,135.85,0.68939119]
[1767637063328,13.42,135.89,135.85,0.68939119]
[1767637063627,7.35857185,135.9,135.86,0.68939119]
[1767637064817,16.94515974,135.9,135.86,0.68939119]
[1767637065329,35.34103906,135.9,135.86,0.68939119]
[1767637065504,9.58658789,135.89,135.83,0.6893912]
[1767637065709,23.00658789,135.88,135.83,0.6893912]
[1767637065910,9.58658789,135.87,135.83,0.6893912]
[1767637066222,23.00658789,135.88,135.83,0.6893912]
[1767637067219,25.75991756,135.87,135.83,0.6893912]
[1767637067418,0.69253274,135.86,135.82,0.2]
[1767637067824,10.27912063,135.86,135.82,0.2]
[1767637068022,10.27912063,135.86,135.81,0.2]
[1767637068023,13.42,135.85,135.81,0.2]
[1767637069321,20.78142528,135.85,135.81,0.2]
[1767637069522,20.78142528,135.85,135.82,0.68939119]
[1767637070736,20.89382118,135.85,135.81,0.2]
[1767637070934,48.88305905,135.85,135.81,0.2]
[1767637071130,48.88305905,135.85,135.81,0.88939119]
[1767637071434,39.29647116,135.85,135.81,0.88939119]
[1767637071613,48.88305905,135.85,135.81,0.88939119]
[1767637071808,20.78142528,135.85,135.82,0.68939119]
[1767637072518,13.36000001,135.85,135.83,0.68939119]
[1767637072727,7.36078421,135.86,135.83,0.68939119]
[1767637072925,13.42,135.88,135.83,0.68939119]
[1767637073130,20.77962256,135.88,135.83,0.68939119]
[1767637073338,49.45696347,135.88,135.83,0.68939119]
[1767637073920,39.87037558,135.88,135.83,0.68939119]
[1767637074127,49.45696347,135.88,135.83,0.68939119]
[1767637074830,39.87037558,135.88,135.83,0.68939119]
[1767637075037,18.39671446,135.9,135.84,0.71945555]
[1767637075239,9.58658789,135.89,135.84,0.71945555]
[1767637075424,36.02802603,135.9,135.84,0.71945555]
[1767637075620,26.44143814,135.9,135.84,0.71945555]
[1767637075825,36.02802603,135.9,135.84,0.71945555]
[1767637076143,9.58658789,135.89,135.84,0.71945555]
[1767637076542,26.44143814,135.9,135.84,0.71945555]
[1767637076847,9.58658789,135.89,135.84,0.71945555]
[1767637077140,9.70508297,135.89,135.84,0.71945555]
[1767637077731,20.77943479,135.88,135.84,0.71945555]
[1767637078514,21.46012798,135.88,135.82,7.36256033]
[1767637078719,21.46012798,135.88,135.83,0.71945555]
[1767637079038,8.04012798,135.88,135.83,0.71945555]
[1767637079632,26.43871496,135.88,135.83,0.71945555]
[1767637079824,25.75802177,135.88,135.83,0.71945555]
[1767637080018,29.62345415,135.88,135.83,0.71945555]
[1767637080223,17.17267344,135.87,135.83,0.71945555]
[1767637080637,3.87116852,135.86,135.81,0.91945555]
[1767637080839,4.45266676,135.85,135.79,0.2]
[1767637081014,25.75802177,135.88,135.79,0.2]
[1767637081015,0.71885908,135.83,135.79,0.2]
[1767637081529,4.47153252,135.83,135.79,0.2]
[1767637081940,7.3626859,135.82,135.79,0.2]
[1767637083020,7.3626859,135.82,135.79,0.9026801]
[1767637084041,7.3626859,135.82,135.8,0.7026801]
[1767637084441,7.24268592,135.82,135.8,0.7026801]
[1767637085027,7.36194509,135.84,135.8,0.7026801]
[1767637085228,18.40209017,135.86,135.8,0.7026801]
[1767637085229,39.18260835,135.86,135.8,0.7026801]
[1767637085434,39.18260835,135.86,135.82,0.7026801]
[1767637085435,39.12260836,135.86,135.82,0.7026801]
[1767637086230,4.47153252,135.84,135.8,0.7026801]
[1767637086445,3.75267344,135.84,135.8,0.7026801]
[1767637086750,4.47153252,135.85,135.8,0.7026801]
[1767637087334,7.36160188,135.84,135.8,0.7026801]
[1767637087948,11.8331344,135.84,135.8,0.7026801]
[1767637088148,3.75267344,135.83,135.8,0.7026801]
[1767637088351,26.48446567,135.84,135.8,0.7026801]
[1767637088650,30.23713911,135.84,135.8,0.7026801]
[1767637090141,4.47153252,135.83,135.79,0.2]
[1767637090347,3.75267344,135.82,135.79,0.2]
[1767637090550,0.71885908,135.82,135.79,0.2]
[1767637090750,4.47153252,135.82,135.79,0.2]
[1767637091128,3.75267344,135.81,135.79,0.2]
[1767637091728,3.75267344,135.8,135.76,0.2]
[1767637091933,7.36359885,135.81,135.75,0.2]
[1767637091934,13.42,135.79,135.75,0.2]
[1767637092134,13.42,135.79,135.74,0.9026801]
[1767637092339,3.75267344,135.77,135.75,0.7026801]
[1767637092757,3.75267344,135.76,135.75,0.7026801]
[1767637093056,3.75267344,135.76,135.74,0.2]
[1767637093057,3.75267344,135.76,135.74,1e-08]
[1767637093255,3.75267344,135.75,135.72,0.7026801]
[1767637093469,0.40572484,135.77,135.72,0.7026801]
[1767637093642,7.36593989,135.76,135.72,0.7026801]
[1767637093960,3.75267344,135.75,135.72,0.7026801]
[1767637094134,3.69267345,135.75,135.72,0.7026801]
[1767637095538,7.36593989,135.76,135.72,0.7026801]
[1767637095734,11.11861333,135.76,135.72,0.7026801]
[1767637098553,7.36525541,135.78,135.72,0.7026801]
[1767637098862,11.11719548,135.79,135.73,0.7026801]
[1767637099252,3.75267344,135.78,135.73,0.7026801]
[1767637099558,11.11719548,135.79,135.73,0.7026801]
[1767637100258,7.36452204,135.79,135.74,0.7026801]
[1767637100457,3.75267344,135.78,135.74,0.7026801]
[1767637101959,7.36452204,135.79,135.75,0.7026801]
[1767637102270,7.36399074,135.8,135.75,0.7026801]
[1767637102574,3.75267344,135.79,135.75,0.7026801]
[1767637103262,11.11714413,135.79,135.75,0.7026801]
[1767637103558,0.71885908,135.78,135.73,61.6]
[1767637103761,0.71885908,135.78,135.73,62.3026801]
[1767637103762,0.40259382,135.77,135.73,62.3026801]
[1767637103986,4.47153252,135.74,135.71,9.44854134]
[1767637104271,3.75267344,135.73,135.71,9.44854134]
[1767637104565,3.75267344,135.72,135.7,0.2]
[1767637105352,3.75267344,135.72,135.7,0.9026801]
[1767637105553,11.12101005,135.72,135.7,0.2]
[1767637105759,3.75267344,135.71,135.7,0.2]
[1767637105958,11.12101005,135.72,135.7,0.2]
[1767637106669,16.97498279,135.72,135.7,0.2]
[1767637106963,9.60664618,135.72,135.7,0.2]
[1767637107847,7.76970533,135.74,135.7,0.2]
[1767637108041,13.42,135.75,135.71,0.7026801]
[1767637108042,21.50548204,135.75,135.71,0.7026801]
[1767637108346,9.60664618,135.74,135.71,0.7026801]
[1767637108547,9.60664618,135.74,135.7,0.9026801]
[1767637108758,9.60664618,135.74,135.71,0.7026801]
[1767637108956,9.60664618,135.73,135.7,0.9026801]
[1767637109153,9.60664618,135.74,135.7,0.9026801]
[1767637109558,21.18921678,135.75,135.7,0.9026801]
[1767637109862,9.60664618,135.75,135.71,0.7026801]
[1767637110171,17.69103819,135.77,135.71,0.7026801]
[1767637110850,16.97217911,135.77,135.71,0.7026801]
[1767637111058,16.97217911,135.77,135.72,0.71572507]
[1767637111541,9.60664618,135.76,135.72,0.71572507]
[1767637112162,10.05717942,135.77,135.72,0.71572507]
[1767637112466,13.42,135.78,135.73,0.71572507]
[1767637113158,10.64305733,135.81,135.75,0.71572507]
[1767637113343,17.48715518,135.81,135.75,0.71572507]
[1767637114150,31.42430412,135.81,135.76,0.71572507]
[1767637114351,31.42430412,135.81,135.74,68.96678034]
[1767637114352,6.57154787,135.79,135.74,62.31572507]
[1767637114950,0.45484398,135.78,135.74,68.96702511]
[1767637115157,5.90546673,135.79,135.75,0.71572507]
[1767637115471,5.90546673,135.78,135.75,0.71572507]
[1767637115767,5.90546673,135.78,135.73,8.08325541]
[1767637115968,5.90546673,135.78,135.74,0.71572507]
[1767637116673,5.90546673,135.78,135.74,8.08237318]
[1767637117268,7.81497921,135.79,135.74,8.08237318]
[1767637117471,5.90546673,135.78,135.74,8.08237318]
[1767637117668,5.90546673,135.78,135.74,0.71572507]
[1767637117669,6.57370313,135.78,135.74,0.71572507]
[1767637117972,19.99370313,135.78,135.74,0.71572507]
[1767637120471,0.66396877,135.74,135.7,0.91572507]
[1767637120772,5.90546673,135.72,135.7,0.91572507]
[1767637121656,14.08396877,135.74,135.7,0.91572507]
[1767637121856,5.90546673,135.72,135.7,0.2]
[1767637122072,5.84546674,135.72,135.7,0.2]
[1767637123362,5.78546675,135.72,135.7,0.2]
[1767637124055,5.90546673,135.73,135.7,0.2]
[1767637124259,19.32546673,135.74,135.71,0.71572507]
[1767637124760,13.42,135.74,135.71,8.08436026]
[1767637124954,13.42,135.74,135.72,0.71572507]
[1767637125371,19.32546673,135.74,135.72,0.71572507]
[1767637125579,13.42,135.74,135.72,0.71572507]
[1767637126073,5.90546673,135.74,135.72,0.71572507]
[1767637126452,0.45053324,135.72,135.63,4.55612462]
[1767637126658,0.67043542,135.68,135.61,0.81572507]
[1767637126858,13.42,135.67,135.62,0.71572507]
[1767637127381,2.41058046,135.67,135.62,0.71572507]
[1767637127576,2.41058046,135.69,135.62,0.71572507]
[1767637127775,13.42,135.71,135.65,0.71572507]
[1767637127776,0.6682364,135.7,135.65,0.71572507]
[1767637128081,13.87053324,135.72,135.65,0.71572507]
[1767637128286,0.67043542,135.74,135.67,0.71572507]
[1767637128578,14.0882364,135.74,135.67,0.71572507]
[1767637128773,18.41425067,135.77,135.7,0.71572507]
[1767637128774,13.72784953,135.75,135.7,0.71572507]
[1767637128965,7.81919277,135.75,135.7,0.71572507]
[1767637129174,6.57262553,135.72,135.67,0.71572507]
[1767637129721,5.90865676,135.69,135.65,0.71572507]
[1767637130192,5.90865676,135.68,135.63,0.71572507]
[1767637130395,5.90865676,135.67,135.63,0.71572507]
[1767637130887,6.56653731,135.66,135.61,8.18960829]
[1767637131187,5.90865676,135.66,135.62,0.71572507]
[1767637131791,6.57689316,135.66,135.61,7.47388322]
[1767637132578,0.6682364,135.66,135.61,8.18960829]
[1767637132775,5.90865676,135.66,135.62,0.71572507]
[1767637133154,8.04122647,135.68,135.62,0.71572507]
[1767637133368,5.90865676,135.67,135.62,8.08920556]
[1767637133767,14.09043542,135.68,135.63,0.67004517]
[1767637133962,19.99909218,135.68,135.63,0.67004517]
[1767637134486,0.67043542,135.68,135.63,0.67004517]
[1767637134687,5.90865676,135.67,135.63,0.67004517]
[1767637135380,8.04073918,135.68,135.63,0.67004517]
[1767637135561,5.90865676,135.67,135.63,0.67004517]
[1767637137092,5.90865676,135.66,135.63,0.67004517]
[1767637137295,5.90865676,135.66,135.63,8.0430287]
[1767637138415,5.90865676,135.65,135.62,7.37349478]
[1767637138704,7.37039439,135.68,135.61,0.77004517]
[1767637138705,0.6682364,135.66,135.61,8.14411227]
[1767637138927,5.90865676,135.65,135.62,0.67004517]
[1767637139578,0.6682364,135.66,135.62,0.67004517]
[1767637139776,5.90865676,135.65,135.62,0.67004517]
[1767637140192,5.90865676,135.65,135.61,0.1]
[1767637140395,5.90865676,135.64,135.61,0.1]
[1767637140597,5.90865676,135.63,135.61,0.1]
[1767637140777,5.90865676,135.62,135.61,0.1]
[1767637140980,8.35013837,135.71,135.63,0.67686551]
[1767637141283,5.90865676,135.67,135.63,0.67686551]
[1767637141489,5.90865676,135.67,135.63,8.04952103]
[1767637141691,0.69964856,135.69,135.63,8.04952103]
[1767637141692,5.90865676,135.68,135.64,0.67686551]
[1767637141877,5.90865676,135.67,135.64,0.67686551]
[1767637142386,0.42161224,135.68,135.64,0.67686551]
[1767637142579,5.90865676,135.67,135.64,0.67686551]
[1767637142782,0.69686819,135.67,135.62,0.67686551]
[1767637142983,5.90865676,135.65,135.62,0.67686551]
[1767637143292,6.33302156,135.66,135.62,0.67686551]
[1767637143675,6.33302156,135.66,135.62,8.05026318]
[1767637143881,5.90865676,135.67,135.62,8.05026318]
[1767637144199,0.42161224,135.67,135.62,8.05026318]
[1767637144689,6.330269,135.67,135.62,8.05026318]
[1767637145389,0.42161224,135.67,135.62,8.05026318]
[1767637145578,0.69686819,135.66,135.62,8.05026318]
[1767637146189,6.60552495,135.66,135.62,8.05026318]
[1767637146392,6.60552495,135.66,135.62,0.67686551]
[1767637146792,6.60552495,135.66,135.62,8.05034646]
[1767637147097,5.90865676,135.65,135.62,0.67686551]
[1767637147606,6.60552495,135.66,135.62,8.05033175]
[1767637147907,6.60552495,135.66,135.62,0.67686551]
[1767637148289,0.69686819,135.66,135.62,8.05015768]
[1767637148481,0.69686819,135.68,135.63,0.67686551]
[1767637148699,5.90865676,135.66,135.63,0.67686551]
[1767637149299,5.90865676,135.67,135.63,0.67686551]
[1767637149507,7.79207258,135.68,135.63,0.67686551]
[1767637149709,5.90865676,135.67,135.63,0.67686551]
[1767637149887,5.90865676,135.66,135.63,0.67686551]
[1767637150604,0.69686819,135.67,135.63,0.67686551]
[1767637150805,2.40942399,135.68,135.64,0.67686551]
[1767637151316,3.10907255,135.68,135.64,0.67686551]
[1767637151498,2.40942399,135.68,135.64,8.04925487]
[1767637152192,2.83103623,135.69,135.64,8.04925487]
[1767637152701,3.10356715,135.65,135.61,61.7]
[1767637152904,0.69686819,135.65,135.61,69.07370426]
[1767637153094,7.36989875,135.69,135.63,0.67686551]
[1767637153095,0.69964856,135.68,135.63,0.67686551]
[1767637153283,3.10907255,135.68,135.63,8.04981786]
[1767637153886,3.10907255,135.68,135.63,7.37295235]
[1767637154085,0.42161224,135.67,135.63,8.04981786]
[1767637154318,2.83103623,135.68,135.63,8.04981786]
[1767637154809,10.20136774,135.68,135.63,8.04981786]
[1767637155012,2.83103623,135.68,135.63,8.04981786]
[1767637155212,7.79193585,135.68,135.63,8.04981786]
[1767637155510,10.20135984,135.68,135.63,8.04981786]
[1767637155693,7.79193585,135.68,135.63,8.04981786]
[1767637155893,7.79193585,135.68,135.64,0.67686551]
[1767637155894,0.42161224,135.68,135.64,0.67686551]
[1767637156094,0.42161224,135.68,135.63,7.37295235]
[1767637156307,0.42161224,135.68,135.63,8.04981786]
[1767637156814,0.42161224,135.68,135.63,7.37295235]
[1767637157113,0.42161224,135.68,135.63,8.04981786]
[1767637157594,2.83103623,135.68,135.63,8.04981786]
[1767637157791,10.20139606,135.68,135.63,8.04981786]
[1767637157995,2.83103623,135.68,135.63,8.04981786]
[1767637158417,0.42161224,135.68,135.63,8.04981786]
[1767637158618,2.83103623,135.68,135.63,8.04981786]
[1767637158796,0.69686819,135.67,135.63,0.67686551]
[1767637158999,10.47978585,135.68,135.63,0.67686551]
[1767637159198,8.07036186,135.68,135.63,0.67686551]
[1767637159895,10.47978585,135.68,135.63,8.0497954]
[1767637160096,10.47978585,135.68,135.63,0.67686551]
[1767637160298,2.83103623,135.67,135.62,7.37329225]
[1767637160497,2.83103623,135.67,135.62,8.05015776]
[1767637160697,0.69686819,135.66,135.61,69.75065838]
[1767637160894,0.69686819,135.66,135.61,8.15065838]
[1767637161213,0.69686819,135.66,135.62,0.67686551]
[1767637161612,0.69686819,135.66,135.62,8.05026329]
[1767637162190,0.69964856,135.67,135.62,8.05026329]
[1767637162396,13.6223362,135.69,135.63,0.67686551]
[1767637162610,0.42161224,135.68,135.63,0.67686551]
[1767637162804,2.83103623,135.68,135.63,0.67686551]
[1767637164119,0.42161224,135.68,135.64,0.67686551]
[1767637164512,3.14335518,135.69,135.64,0.67686551]
[1767637165021,13.34425527,135.69,135.64,0.67686551]
[1767637165597,10.93483128,135.69,135.64,0.67686551]
[1767637165825,3.56496742,135.69,135.64,0.67686551]
[1767637166301,3.56496742,135.69,135.64,8.04926418]
[1767637168904,0.69686819,135.68,135.64,8.04926418]
[1767637169105,0.4243648,135.67,135.63,7.3725668]
[1767637169300,3.84300374,135.69,135.64,8.04928677]
[1767637169506,0.42161224,135.68,135.64,8.04928677]
[1767637170218,3.84300374,135.69,135.64,8.04928677]
[1767637171509,11.21278054,135.69,135.64,8.04928677]
[1767637172108,3.84300374,135.69,135.64,8.04928677]
[1767637173226,3.84300374,135.69,135.65,0.66138465]
[1767637173425,3.14335518,135.69,135.65,0.66138465]
[1767637173628,3.57389134,135.69,135.65,0.66138465]
[1767637174433,3.14335518,135.69,135.65,0.66138465]
[1767637175335,3.14335518,135.69,135.66,8.03275425]
[1767637175823,3.14335518,135.69,135.66,0.66138465]
[1767637177618,0.43311114,135.68,135.64,69.63366193]
[1767637177803,3.83398967,135.69,135.64,69.63366193]
[1767637178005,4.45045057,135.67,135.62,8.03458084]
[1767637178214,4.45045057,135.67,135.63,0.66138465]
[1767637178419,0.68803351,135.67,135.63,8.03426825]
[1767637179331,4.19295322,135.68,135.63,8.03426825]
[1767637180436,14.70629831,135.69,135.64,0.66138465]
[1767637181338,10.94388125,135.69,135.64,0.66138465]
[1767637181540,14.70629831,135.69,135.64,0.66138465]
[1767637182639,3.57389134,135.69,135.64,8.03359761]
[1767637182818,14.70615746,135.69,135.64,8.03359761]
[1767637183533,10.9437404,135.69,135.64,0.66138465]
[1767637183739,4.45045057,135.68,135.64,0.66138465]
[1767637184039,0.68803351,135.68,135.64,0.66138465]
[1767637184539,4.45045057,135.68,135.64,0.66138465]
[1767637185139,3.14335518,135.69,135.65,0.66138465]
[1767637185328,6.90577224,135.69,135.65,0.66138465]
[1767637185534,7.3363084,135.69,135.65,8.0331957]
[1767637186744,3.57389134,135.69,135.65,8.0331957]
[1767637186922,3.14335518,135.69,135.66,0.66138465]
[1767637187120,3.14335518,135.69,135.65,7.37181105]
[1767637187121,1e-08,135.69,135.67,0.66138465]
[1767637187444,0.43311115,135.69,135.65,8.0331957]
[1767637187635,4.19552821,135.69,135.65,0.66138465]
[1767637187839,11.56527668,135.69,135.65,0.66138465]
[1767637188038,3.76241706,135.67,135.64,62.26138465]
[1767637188516,3.76241706,135.65,135.61,0.1]
[1767637188714,13.44,135.66,135.61,0.1]
[1767637188920,3.76241706,135.63,135.61,0.1]
[1767637189353,3.76241706,135.63,135.58,7.37549436]
[1767637189354,3.86623326,135.62,135.58,0.66138465]
[1767637189530,3.76241706,135.61,135.58,0.66138465]
[1767637189716,0.1038162,135.62,135.58,0.66138465]
[1767637190048,3.76241706,135.61,135.58,0.66138465]
[1767637191143,0.1038162,135.62,135.58,0.66138465]
[1767637191443,3.76241706,135.61,135.58,0.66138465]
[1767637191818,0.1038162,135.62,135.58,0.66138465]
[1767637192019,3.76241706,135.62,135.58,0.66138465]
[1767637193124,7.37315521,135.63,135.59,0.66138465]
[1767637193325,11.13509024,135.64,135.59,0.66138465]
[1767637194520,11.13509024,135.64,135.6,0.70893833]
[1767637195747,13.44,135.63,135.6,0.70893833]
[1767637196149,11.13509024,135.64,135.6,0.70893833]
[1767637196532,3.76241706,135.64,135.6,0.70893833]
[1767637197648,11.13490492,135.64,135.6,0.70893833]
[1767637198554,7.37248786,135.64,135.6,0.70893833]
[1767637199141,7.47091301,135.65,135.6,0.70893833]
[1767637199344,11.23333007,135.65,135.6,0.70893833]
[1767637201249,7.37191301,135.65,135.61,0.69379966]
[1767637201452,0.58548428,135.67,135.61,0.69379966]
[1767637201654,0.58548429,135.69,135.61,0.69379966]
[1767637201850,20.90950125,135.68,135.61,0.69379966]
[1767637202951,20.90950125,135.68,135.63,0.69379966]
[1767637203437,13.539,135.68,135.63,0.69379966]
[1767637203636,13.44,135.68,135.63,0.69379966]
[1767637203832,0.1038162,135.66,135.62,7.37354372]
[1767637204034,0.1038162,135.66,135.6,66.67525477]
[1767637204035,3.86623326,135.66,135.6,0.69379966]
[1767637204234,0.10853656,135.64,135.6,0.69379966]
[1767637204454,0.10853656,135.64,135.6,8.06830419]
[1767637204631,17.20241706,135.65,135.61,0.69379966]
[1767637205446,7.95587419,135.68,135.62,0.69379966]
[1767637205642,13.44,135.67,135.62,0.69379966]
[1767637207286,13.44,135.67,135.63,7.37300007]
[1767637207559,13.44,135.67,135.64,0.69379966]
[1767637208565,13.44,135.67,135.64,8.06622384]
[1767637208942,13.44,135.67,135.64,0.69379966]
[1767637210670,13.44,135.67,135.63,8.06653293]
[1767637212673,14.02061943,135.67,135.63,0.69379966]
[1767637212990,0.1038162,135.66,135.61,8.06752822]
[1767637213147,0.1038162,135.66,135.61,7.37372856]
[1767637213480,0.1038162,135.66,135.6,0.69379966]
[1767637213481,0.09900001,135.69,135.64,0.69379966]
[1767637213650,0.58061943,135.67,135.63,7.37281729]
[1767637214486,0.1038162,135.66,135.61,8.06757672]
[1767637217181,0.1038162,135.66,135.62,0.69379966]
[1767637217558,7.95658705,135.67,135.62,0.69379966]
[1767637219178,4.34790134,135.67,135.63,0.69379966]
[1767637219475,4.34790134,135.67,135.59,0.69379966]
[1767637219476,0.57585139,135.63,135.59,0.69379966]
[1767637219681,3.76241706,135.64,135.59,0.69379966]
[1767637219855,7.37249247,135.64,135.6,0.69379966]
[1767637220056,13.44,135.65,135.6,0.69379966]
[1767637220057,24.57454724,135.65,135.6,0.69379966]
[1767637221186,20.81213018,135.65,135.6,0.69379966]
[1767637221362,13.44,135.65,135.61,0.69379966]
[1767637222586,20.81206581,135.65,135.61,0.69379966]
[1767637222884,24.57448287,135.65,135.61,0.69379966]
[1767637223585,20.81206581,135.65,135.57,0.1]
[1767637223770,3.76241706,135.58,135.54,0.69379966]
[1767637223975,3.76241706,135.58,135.55,0.69379966]
[1767637224868,13.44,135.59,135.55,8.07111124]
[1767637225179,17.20241706,135.59,135.55,8.07111124]
[1767637225380,17.20241706,135.59,135.55,0.69379966]
[1767637225680,17.20241706,135.59,135.56,0.69379966]
[1767637226185,18.43201914,135.64,135.56,0.69379966]
[1767637226487,3.76241706,135.62,135.56,0.69379966]
[1767637227068,7.37028301,135.68,135.59,0.69379966]
[1767637227262,0.43637884,135.69,135.61,0.69379966]
[1767637227670,7.80637104,135.69,135.63,0.69379966]
[1767637228770,7.80637104,135.69,135.64,7.3724565]
[1767637228991,7.80637104,135.69,135.64,8.06625616]
[1767637230076,9.60991022,135.67,135.62,0.69379966]
[1767637230269,23.04991022,135.67,135.63,0.69379966]
[1767637231675,13.44,135.67,135.63,0.69379966]
[1767637234576,13.44,135.67,135.63,8.06666215]
[1767637234974,13.44,135.67,135.63,0.69379966]
[1767637235596,13.44,135.67,135.63,8.06677449]
[1767637236293,13.44,135.67,135.64,0.67761044]
[1767637236501,0.43637884,135.69,135.64,0.67761044]